bitfinex/quotes_SOLUSD_20240811
["timestamp","ask_amount","ask_price","bid_price","bid_amount"]
[1723350789234,11.09,155.95,155.92,6.4133]
[1723350789755,11.09,155.95,155.91,22.4484]
[1723350790144,6.4117,155.97,155.91,22.4484]
[1723350790332,28.75010588,155.99,155.91,16.0345]
[1723350790333,11.09,155.93,155.91,16.0345]
[1723350791257,11.09,155.93,155.91,22.4484]
[1723350792531,6.4116,155.97,155.91,22.4484]
[1723350792736,45.0,155.96,155.91,22.4484]
[1723350792965,11.09,155.94,155.91,22.4484]
[1723350793261,11.09,155.94,155.91,16.0345]
[1723350794657,51.412,155.96,155.91,22.4484]
[1723350794966,11.09,155.93,155.91,16.0345]
[1723350797447,11.09,155.93,155.87,16.0382]
[1723350797655,11.09,155.91,155.87,22.4537]
[1723350798146,11.09,155.91,155.88,6.415]
[1723350799384,11.09,155.91,155.87,22.4536]
[1723350799660,11.09,155.89,155.87,16.0382]
[1723350800482,11.09,155.89,155.84,22.3868]
[1723350800642,11.09,155.87,155.84,22.3868]
[1723350801540,44.48549,155.92,155.83,22.3366]
[1723350801541,11.09,155.85,155.83,22.3366]
[1723350801737,11.09,155.85,155.83,16.0426]
[1723350802980,60.90239,155.92,155.83,16.0426]
[1723350802981,6.4144,155.9,155.83,16.0426]
[1723350803144,11.09,155.87,155.83,16.0426]
[1723350803545,11.09,155.87,155.85,6.4163]
[1723350803741,11.09,155.87,155.84,6.4168]
[1723350803944,11.09,155.85,155.84,6.4168]
[1723350804770,11.09,155.85,155.83,22.4598]
[1723350806861,14.12681191,155.91,155.83,16.0426]
[1723350807067,11.09,155.89,155.86,22.4548]
[1723350809355,11.09,155.89,155.86,16.0392]
[1723350809760,11.09,155.89,155.86,22.4551]
[1723350809956,22.8304,155.92,155.86,16.0392]
[1723350810179,11.09,155.9,155.87,6.4155]
[1723350811466,11.09,155.9,155.86,16.0392]
[1723350811859,17.5044,155.9,155.86,16.0392]
[1723350812260,11.09,155.9,155.86,16.0392]
[1723350812458,11.09,155.9,155.86,22.455]
[1723350812655,7.71261191,155.95,155.86,37.908]
[1723350812972,42.33615847,155.96,155.9,6.4143]
[1723350812973,11.09,155.93,155.9,6.4143]
[1723350813852,11.09,155.95,155.9,6.4143]
[1723350814468,7.71261191,155.99,155.89,16.0369]
[1723350814675,11.09,155.97,155.94,6.4126]
[1723350815253,11.09,155.97,155.93,7.69552413]
[1723350815869,11.09,155.95,155.92,16.0338]
[1723350816375,11.09,155.93,155.88,16.0373]
[1723350817464,11.09,155.93,155.89,6.4146]
[1723350817665,28.5623,155.95,155.89,6.4146]
[1723350817866,6.4127,155.94,155.89,6.4146]
[1723350818281,67.15,155.93,155.87,6.4154]
[1723350819085,73.5631,155.93,155.88,6.4151]
[1723350819274,67.15,155.93,155.88,6.4151]
[1723350819467,22.15,155.91,155.89,6.4147]
[1723350819987,7.71261191,155.98,155.9,16.0359]
[1723350820179,22.15,155.94,155.9,22.4498]
[1723350820684,22.15,155.94,155.91,6.4139]
[1723350821900,22.15,155.94,155.9,16.0359]
[1723350822072,22.15,155.94,155.9,22.4502]
[1723350822689,22.15,155.94,155.9,16.0359]
[1723350824277,28.5629,155.94,155.89,6.4147]
[1723350824469,22.15,155.92,155.87,22.4542]
[1723350824671,22.15,155.92,155.88,6.4151]
[1723350825185,22.15,155.9,155.86,21.8688]
[1723350825383,22.15,155.92,155.86,28.2847]
[1723350825384,22.15,155.88,155.86,28.2847]
[1723350826776,22.15,155.9,155.86,37.9084]
[1723350827485,22.15,155.9,155.88,6.4151]
[1723350827881,22.15,155.92,155.88,16.037]
[1723350828081,22.15,155.94,155.88,16.037]
[1723350828685,22.15,155.94,155.9,6.4143]
[1723350829672,22.15,155.92,155.88,22.4517]
[1723350829893,22.15,155.92,155.86,28.2844]
[1723350830071,22.15,155.9,155.86,28.2844]
[1723350831571,22.15,155.9,155.87,16.0386]
[1723350832096,22.15,155.92,155.89,6.4147]
[1723350833685,22.15,155.95,155.87,17.32134282]
[1723350833891,22.15,155.95,155.91,6.4139]
[1723350835301,22.15,155.95,155.9,1.282679]
[1723350835799,22.15,155.93,155.89,16.0359]
[1723350835975,22.15,155.93,155.87,6.4151]
[1723350836181,22.15,155.93,155.86,28.2847]
[1723350836589,6.4136,155.92,155.86,28.2847]
[1723350836931,22.15,155.93,155.87,6.4153]
[1723350837592,28.5631,155.93,155.88,6.415]
[1723350837795,22.15,155.93,155.88,6.415]
[1723350838588,22.15,155.93,155.89,6.4146]
[1723350839575,22.15,155.93,155.88,16.0379]
[1723350840275,28.5632,155.93,155.88,16.0379]
[1723350840792,28.5632,155.93,155.88,22.4529]
[1723350841904,22.15,155.91,155.88,22.4529]
[1723350842109,22.15,155.93,155.88,16.0379]
[1723350842294,22.15,155.93,155.89,1.28272204]
[1723350842611,22.15,155.93,155.9,1.28270892]
[1723350842908,22.15,155.93,155.88,16.0379]
[1723350844313,22.15,155.93,155.9,6.4142]
[1723350845802,22.15,155.93,155.89,6.4147]
[1723350845997,22.15,155.93,155.88,16.0379]
[1723350846604,28.5635,155.93,155.88,22.4529]
[1723350846778,22.15,155.93,155.88,22.4529]
[1723350847706,22.15,155.93,155.89,6.4145]
[1723350848384,22.15,155.93,155.9,6.4142]
[1723350851698,11.08,155.92,155.9,6.4142]
[1723350858091,6.4119,155.96,155.9,6.4142]
[1723350858282,11.08,155.93,155.88,16.0379]
[1723350858485,11.08,155.93,155.91,6.4138]
[1723350858683,11.08,155.97,155.94,6.4123]
[1723350862509,11.08,155.95,155.92,6.4131]
[1723350863303,0.12549,156.01,155.93,6.4129]
[1723350863524,11.08,155.99,155.95,16.0304]
[1723350863697,11.08,155.99,155.97,6.4114]
[1723350863884,12.1141,155.9,155.76,22.1101]
[1723350864094,5.91377303,155.89,155.76,22.1101]
[1723350864418,12.1141,155.9,155.77,12.36354456]
[1723350864583,6.4132,155.93,155.81,11.08]
[1723350864791,18.5267,155.95,155.83,26.6798]
[1723350865096,6.6544,155.98,155.87,16.0382]
[1723350865097,11.08,155.92,155.87,16.0382]
[1723350865703,22.15,155.93,155.87,16.0382]
[1723350866207,22.15,155.93,155.88,6.4151]
[1723350866415,22.15,155.95,155.87,16.0382]
[1723350867132,22.15,155.95,155.9,6.4142]
[1723350869519,22.15,155.95,155.91,6.4138]
[1723350870222,22.15,155.95,155.9,22.4494]
[1723350870433,22.15,155.93,155.88,6.4148]
[1723350871600,22.15,155.93,155.89,6.4147]
[1723350872998,22.15,155.91,155.87,6.4152]
[1723350873621,22.15,155.91,155.88,6.4151]
[1723350874498,22.15,155.91,155.86,16.0393]
[1723350874795,22.15,155.89,155.84,6.4164]
[1723350875207,22.15,155.87,155.84,6.4164]
[1723350876835,22.15,155.85,155.83,15.5998]
[1723350877036,22.15,155.85,155.82,28.9709]
[1723350877037,22.15,155.85,155.82,22.4606]
[1723350877396,30.0,155.84,155.82,16.0432]
[1723350877620,30.0,155.84,155.81,6.418]
[1723350877621,22.15,155.83,155.8,6.4184]
[1723350877938,22.15,155.83,155.82,6.4176]
[1723350878436,22.15,155.83,155.81,22.4631]
[1723350879537,22.15,155.83,155.79,15.8804]
[1723350879538,22.15,155.83,155.79,22.2989]
[1723350880027,22.15,155.83,155.81,6.418]
[1723350880731,22.15,155.83,155.82,6.4176]
[1723350880904,22.15,155.85,155.82,6.4176]
[1723350881306,22.15,155.83,155.8,16.0461]
[1723350881722,22.15,155.83,155.82,6.4176]
[1723350882910,22.15,155.83,155.8,22.4643]
[1723350883612,22.15,155.83,155.81,6.4179]
[1723350884012,22.15,155.83,155.82,6.4176]
[1723350885312,22.15,155.83,155.81,6.418]
[1723350886419,22.15,155.83,155.8,22.4645]
[1723350888017,22.15,155.83,155.8,16.0461]
[1723350888329,22.15,155.83,155.8,22.4644]
[1723350889637,22.15,155.83,155.81,6.418]
[1723350890218,22.15,155.83,155.76,16.0499]
[1723350890416,22.15,155.79,155.76,16.0499]
[1723350891208,22.15,155.79,155.78,6.4193]
[1723350891938,22.15,155.79,155.76,22.4696]
[1723350891939,22.27549,155.79,155.76,22.4696]
[1723350892108,45.0,155.78,155.76,22.4696]
[1723350892308,22.15,155.79,155.77,6.4197]
[1723350895118,22.15,155.79,155.76,16.0499]
[1723350895317,22.15,155.77,155.76,16.0499]
[1723350895509,22.15,155.77,155.72,16.0535]
[1723350895715,22.15,155.77,155.75,6.4205]
[1723350895915,22.15,155.77,155.76,6.4201]
[1723350896816,22.15,155.77,155.75,22.4718]
[1723350899442,22.15,155.77,155.75,16.0513]
[1723350900331,22.15,155.77,155.74,6.4209]
[1723350900511,22.15,155.75,155.74,6.4209]
[1723350902231,22.15,155.75,155.72,6.4217]
[1723350902418,22.15,155.73,155.72,6.4217]
[1723350903424,0.12549,155.78,155.74,6.4209]
[1723350903713,22.15,155.77,155.75,6.4204]
[1723350904726,22.15,155.77,155.76,6.4201]
[1723350905040,22.15,155.77,155.75,6.4205]
[1723350905538,22.15,155.77,155.76,6.4201]
[1723350905844,22.15,155.79,155.77,6.4195]
[1723350906822,22.15,155.79,155.76,6.4201]
[1723350907317,22.15,155.77,155.75,6.4203]
[1723350911341,22.15,155.77,155.74,22.4731]
[1723350911719,11.1,155.75,155.72,6.4213]
[1723350911923,11.1,155.73,155.72,6.4213]
[1723350913217,0.12549,155.79,155.74,6.4208]
[1723350913423,11.1,155.75,155.74,6.4208]
[1723350913841,22.2,155.75,155.74,6.4208]
[1723350915249,22.2,155.75,155.73,16.0528]
[1723350915250,67.2,155.75,155.73,22.4741]
[1723350915428,22.2,155.75,155.73,16.0528]
[1723350917164,16.76288,155.74,155.63,22.6383]
[1723350917350,22.2,155.69,155.68,6.4234]
[1723350917537,22.2,155.69,155.65,16.0609]
[1723350917741,22.2,155.69,155.66,6.4238]
[1723350918062,22.2,155.67,155.66,6.4238]
[1723350919753,22.2,155.67,155.65,22.4855]
[1723350920238,22.2,155.67,155.66,6.4242]
[1723350922157,22.2,155.69,155.65,17.34576443]
[1723350922454,22.2,155.67,155.65,16.0609]
[1723350925642,22.2,155.67,155.65,22.4854]
[1723350926753,22.2,155.67,155.65,16.0609]
[1723350926967,51.4242,155.66,155.6,6.4263]
[1723350927137,22.2,155.63,155.59,15.8401]
[1723350927549,22.2,155.63,155.59,22.2669]
[1723350927753,22.2,155.63,155.59,15.8401]
[1723350928264,22.2,155.61,155.59,6.427]
[1723350929635,22.2,155.61,155.58,6.4273]
[1723350929853,22.2,155.59,155.55,6.4287]
[1723350930042,45.0,155.6,155.56,6.4283]
[1723350930043,22.2,155.57,155.56,6.4283]
[1723350932153,45.0,155.6,155.57,16.0696]
[1723350932335,22.2,155.59,155.58,6.4271]
[1723350932539,52.2,155.59,155.57,22.4975]
[1723350932739,22.2,155.59,155.57,22.4975]
[1723350936547,34.68174165,155.61,155.58,6.4275]
[1723350937667,11.12,155.6,155.58,6.4275]
[1723350938551,11.12,155.6,155.57,22.4975]
[1723350946475,11.12,155.58,155.53,16.0732]
[1723350947878,11.12,155.58,155.55,6.4287]
[1723350951080,11.12,155.56,155.54,6.4291]
[1723350951580,6.4265,155.61,155.55,6.4288]
[1723350951786,11.12,155.57,155.55,6.4288]
[1723350957388,11.12,155.57,155.53,22.5024]
[1723350958782,45.0,155.6,155.53,16.0732]
[1723350958988,11.12,155.58,155.53,16.0732]
[1723350959788,11.12,155.58,155.56,6.4283]
[1723350959985,11.12,155.58,155.54,6.4288]
[1723350960190,11.12,155.56,155.54,6.4288]
[1723350962790,11.12,155.56,155.55,6.4288]
[1723350964893,11.12,155.56,155.53,22.5024]
[1723350965267,11.12,155.54,155.52,0.8453623]
[1723350965782,45.0,155.53,155.52,0.8453623]
[1723350967302,56.37098,155.53,155.46,16.0803]
[1723350967473,11.12,155.49,155.46,16.0803]
[1723350967676,11.12,155.49,155.47,6.432]
[1723350967879,11.12,155.49,155.46,22.5128]
[1723350968216,11.12,155.47,155.44,28.8372]
[1723350968376,11.12,155.47,155.44,6.433]
[1723350968802,11.12,155.47,155.42,16.0846]
[1723350968803,11.12,155.45,155.42,16.0846]
[1723350968983,11.12,155.43,155.42,16.0846]
[1723350970581,11.12,155.43,155.42,22.5187]
[1723350970784,11.12,155.45,155.44,6.4333]
[1723350971985,11.12,155.45,155.42,16.0846]
[1723350971986,21.18048911,155.51,155.45,16.082]
[1723350972188,26.01797917,155.56,155.46,1.28638982]
[1723350972396,11.12,155.55,155.51,6.43]
[1723350973111,11.12,155.57,155.51,22.5055]
[1723350973800,22.26,155.57,155.51,22.5055]
[1723350974108,22.26,155.57,155.52,6.4299]
[1723350975205,28.6879,155.57,155.51,22.5058]
[1723350975388,45.0,155.56,155.51,22.5058]
[1723350975913,11.31340058,155.58,155.54,16.0725]
[1723350976094,28.6863,155.61,155.54,16.0725]
[1723350976496,22.26,155.59,155.54,16.0725]
[1723350977109,22.26,155.61,155.56,6.4283]
[1723350977410,22.26,155.61,155.54,16.0725]
[1723350977411,45.0,155.6,155.54,16.0725]
[1723350978011,22.26,155.63,155.58,16.0687]
[1723350978216,22.26,155.65,155.6,6.4267]
[1723350978437,22.26,155.65,155.58,16.0687]
[1723350978438,22.26,155.65,155.61,6.4261]
[1723350979503,22.26,155.65,155.59,6.4267]
[1723350979713,45.0,155.64,155.59,6.4267]
[1723350980310,45.0,155.64,155.58,16.0687]
[1723350980622,22.26,155.63,155.58,16.0687]
[1723350980821,45.0,155.62,155.58,16.0687]
[1723350981004,22.26,155.61,155.56,6.4283]
[1723350981211,22.26,155.61,155.54,16.0722]
[1723350981212,22.26,155.61,155.57,6.4278]
[1723350981410,22.26,155.61,155.56,6.4283]
[1723350981615,45.0,155.6,155.56,6.4283]
[1723350981795,45.0,155.6,155.54,16.0722]
[1723350981997,45.0,155.6,155.55,6.4284]
[1723350982519,45.0,155.6,155.56,6.4282]
[1723350982899,45.0,155.6,155.57,6.4278]
[1723350983506,45.0,155.6,155.56,6.4283]
[1723350985426,45.0,155.6,155.55,6.4287]
[1723350987223,22.26,155.59,155.54,22.5013]
[1723350987422,45.0,155.58,155.54,22.5013]
[1723350989207,22.26,155.57,155.54,16.0722]
[1723350989418,22.26,155.57,155.55,6.4285]
[1723350990106,45.0,155.58,155.55,6.4285]
[1723350994629,22.26,155.59,155.57,6.4279]
[1723350994814,22.26,155.63,155.6,6.4266]
[1723350995220,22.26,155.65,155.61,6.4261]
[1723350995416,22.26,155.65,155.62,6.4258]
[1723350996410,22.26,155.65,155.61,6.4263]
[1723351000613,28.6838,155.67,155.62,6.4258]
[1723351000812,45.0,155.66,155.62,6.4258]
[1723351003033,51.4242,155.66,155.6,22.4931]
[1723351003435,51.4242,155.66,155.61,6.4261]
[1723351004413,22.26,155.67,155.62,6.4257]
[1723351005318,28.6838,155.67,155.61,6.4262]
[1723351005519,28.6838,155.67,155.62,6.4257]
[1723351005719,11.11,155.66,155.62,6.4257]
[1723351007332,11.11,155.66,155.61,6.4262]
[1723351007537,17.5342,155.66,155.61,6.4262]
[1723351008227,17.5342,155.66,155.6,22.4934]
[1723351008822,6.4246,155.65,155.6,22.4934]
[1723351009146,11.11,155.64,155.6,22.4934]
[1723351009742,11.11,155.64,155.61,6.4261]
[1723351010533,11.11,155.64,155.61,5.9261]
[1723351011237,11.11,155.64,155.6,16.0667]
[1723351011429,11.11,155.62,155.6,22.4934]
[1723351015715,6.4247,155.65,155.6,16.0667]
[1723351015931,11.11,155.62,155.6,22.4933]
[1723351017136,11.11,155.62,155.6,16.0667]
[1723351017343,11.11,155.62,155.58,6.4271]
[1723351017542,11.11,155.6,155.58,6.4271]
[1723351018533,11.11,155.62,155.61,6.4263]
[1723351020030,11.11,155.62,155.6,6.4266]
[1723351020231,11.11,155.62,155.61,6.4263]
[1723351021546,11.11,155.62,155.6,6.4267]
[1723351022459,11.11,155.62,155.59,22.4949]
[1723351024568,11.11,155.62,155.57,6.4276]
[1723351024738,11.11,155.62,155.58,6.4275]
[1723351025160,11.11,155.62,155.57,6.4279]
[1723351025740,11.11,155.6,155.56,16.0708]
[1723351026063,11.11,155.58,155.56,16.0708]
[1723351027635,11.11,155.58,155.56,22.4991]
[1723351027933,11.11,155.58,155.57,6.4279]
[1723351030850,11.11,155.58,155.56,16.0708]
[1723351032351,11.11,155.58,155.57,6.4279]
[1723351032571,0.25098,155.62,155.59,6.4271]
[1723351032572,11.11,155.62,155.59,6.4271]
[1723351033756,11.11,155.62,155.58,6.4274]
[1723351034376,11.11,155.62,155.59,16.0669]
[1723351034656,11.11,155.62,155.59,22.4936]
[1723351037968,15.4329,155.67,155.59,16.0669]
[1723351038272,11.11,155.67,155.64,6.425]
[1723351038472,11.11,155.65,155.61,22.4911]
[1723351038771,11.11,155.65,155.61,16.0648]
[1723351039261,17.5355,155.63,155.58,16.0687]
[1723351039465,11.11,155.61,155.58,16.0687]
[1723351039773,11.11,155.61,155.59,6.4271]
[1723351044279,10.61,155.61,155.58,22.4961]
[1723351044580,10.61,155.61,155.59,6.4269]
[1723351046760,10.61,155.61,155.58,16.0687]
[1723351046961,11.11,155.59,155.58,16.0687]
[1723351048277,11.11,155.59,155.58,22.4962]
[1723351052388,11.11,155.59,155.55,16.0719]
[1723351052687,11.11,155.57,155.53,16.1275]
[1723351052866,11.11,155.55,155.52,16.075]
[1723351053075,11.11,155.53,155.49,38.8272]
[1723351053379,11.11,155.53,155.5,6.4304]
[1723351053765,11.11,155.54,155.53,6.4294]
[1723351054467,11.11,155.54,155.52,22.5047]
[1723351055362,11.11,155.54,155.49,6.4311]
[1723351055561,11.11,155.51,155.5,6.4308]
[1723351058381,28.3253,155.59,155.51,16.0757]
[1723351058573,28.3253,155.59,155.45,22.7491]
[1723351058574,11.11,155.52,155.45,22.7491]
[1723351058884,11.11,155.52,155.46,20.0]
[1723351059062,11.11,155.52,155.48,6.4312]
[1723351059475,11.11,155.52,155.49,6.4311]
[1723351060574,11.11,155.52,155.5,6.4308]
[1723351062172,11.11,155.52,155.51,6.4304]
[1723351062882,56.11,155.52,155.5,16.0771]
[1723351063087,56.11,155.52,155.5,22.5077]
[1723351063269,11.11,155.52,155.5,22.5077]
[1723351067284,0.12549,155.55,155.5,22.5077]
[1723351067485,11.11,155.53,155.5,16.0771]
[1723351068991,11.11,155.53,155.5,22.5077]
[1723351070592,11.11,155.53,155.5,16.0771]
[1723351073775,11.11,155.53,155.5,22.5079]
[1723351074496,11.11,155.53,155.5,16.0771]
[1723351076278,11.11,155.51,155.48,6.4315]
[1723351078799,0.37647,155.55,155.48,6.4315]
[1723351078800,11.11,155.53,155.49,1.2862213]
[1723351079201,11.11,155.53,155.51,6.4303]
[1723351079783,42.36884848,155.59,155.53,6.4295]
[1723351079979,11.11,155.57,155.53,6.4295]
[1723351080992,11.11,155.57,155.52,6.43]
[1723351081189,11.11,155.55,155.52,6.43]
[1723351084817,11.11,155.55,155.51,22.5064]
[1723351086193,11.11,155.57,155.54,6.429]
[1723351086585,11.11,155.57,155.53,6.4295]
[1723351086803,11.11,155.57,155.52,6.4299]
[1723351087208,17.5383,155.57,155.51,37.8185]
[1723351087403,11.11,155.53,155.46,15.3121]
[1723351087715,45.0,155.52,155.46,15.3121]
[1723351087896,0.25098,155.54,155.47,16.0796]
[1723351088095,22.651,155.57,155.47,1.28621071]
[1723351088294,51.4284,155.56,155.5,16.0766]
[1723351088505,62.66389,155.56,155.5,16.0766]
[1723351088803,56.23549,155.56,155.5,16.0766]
[1723351089006,56.23549,155.56,155.51,6.4303]
[1723351089007,56.11,155.56,155.51,6.4303]
[1723351090504,62.5385,155.56,155.5,16.0766]
[1723351090688,56.11,155.56,155.51,6.4302]
[1723351091299,11.11,155.52,155.46,15.3121]
[1723351091620,11.11,155.51,155.46,15.3121]
[1723351091824,11.11,155.51,155.46,21.7442]
[1723351091992,11.11,155.49,155.46,15.3121]
[1723351092188,11.11,155.49,155.45,22.7035]
[1723351092497,11.11,155.47,155.42,21.7458]
[1723351092803,11.11,155.47,155.42,15.3121]
[1723351093202,11.11,155.47,155.43,6.4337]
[1723351093898,11.11,155.45,155.41,16.0858]
[1723351094301,11.11,155.43,155.41,16.0858]
[1723351096900,11.11,155.45,155.41,16.0858]
[1723351097215,11.11,155.46,155.42,6.4341]
[1723351097400,11.11,155.46,155.41,16.0858]
[1723351097718,11.11,155.44,155.41,22.5203]
[1723351099300,11.11,155.44,155.41,16.0858]
[1723351099301,45.0,155.43,155.41,16.0858]
[1723351103824,45.0,155.43,155.39,6.4354]
[1723351104003,11.11,155.4,155.37,37.8379]
[1723351104204,11.11,155.38,155.37,22.5258]
[1723351105502,11.11,155.38,155.36,0.8453623]
[1723351105705,45.0,155.37,155.36,0.8453623]
[1723351106707,16.83827,155.42,155.36,7.2819623]
[1723351106915,16.83827,155.42,155.36,0.8453623]
[1723351106916,11.11,155.38,155.36,0.8453623]
[1723351107227,45.25098,155.37,155.36,0.8453623]
[1723351107529,45.37647,155.37,155.36,0.8453623]
[1723351109634,45.12549,155.37,155.36,0.8453623]
[1723351109810,45.0,155.37,155.36,0.8453623]
[1723351111426,45.12549,155.37,155.36,0.8453623]
[1723351111723,45.37647,155.37,155.36,0.8453623]
[1723351114103,11.11,155.37,155.36,0.8453623]
[1723351115429,62.92267,155.37,155.36,0.8453623]
[1723351115631,63.04816,155.37,155.36,0.8453623]
[1723351116620,56.61196,155.37,155.36,0.8453623]
[1723351125418,63.04816,155.37,155.36,0.8453623]
[1723351129261,56.61196,155.37,155.36,0.8453623]
[1723351130154,63.04816,155.37,155.36,0.8453623]
[1723351133421,56.61196,155.37,155.36,0.8453623]
[1723351135657,63.04816,155.37,155.36,0.8453623]
[1723351135847,45.50196,155.37,155.36,0.8453623]
[1723351136023,56.61196,155.37,155.36,0.8453623]
[1723351137432,63.04816,155.37,155.36,0.8453623]
[1723351142952,0.12549,155.34,155.3,32.2642]
[1723351143141,11.11,155.33,155.3,32.2642]
[1723351143345,45.0,155.32,155.3,32.2642]
[1723351143754,45.0,155.32,155.3,38.7033]
[1723351144560,45.0,155.32,155.3,32.2642]
[1723351145851,45.0,155.32,155.29,6.6604]
[1723351146053,11.11,155.31,155.28,6.4399]
[1723351146360,45.0,155.3,155.28,6.4399]
[1723351146559,45.0,155.3,155.27,16.1008]
[1723351146744,45.0,155.3,155.27,22.5411]
[1723351147136,45.0,155.3,155.28,6.4398]
[1723351148430,45.0,155.3,155.27,22.5411]
[1723351148946,45.0,155.3,155.28,6.4398]
[1723351149149,45.0,155.3,155.29,6.4395]
[1723351151534,11.23549,155.32,155.29,6.4395]
[1723351151841,11.11,155.32,155.29,6.4395]
[1723351152444,11.11,155.32,155.28,6.4399]
[1723351152648,0.37647,155.31,155.28,6.4399]
[1723351153340,45.37647,155.31,155.28,6.4399]
[1723351155545,45.37647,155.31,155.27,16.1008]
[1723351156263,45.37647,155.31,155.27,22.541]
[1723351157953,45.0,155.31,155.29,6.4395]
[1723351158143,11.11,155.33,155.29,6.4395]
[1723351159383,45.12549,155.32,155.28,6.4399]
[1723351159969,45.12549,155.32,155.29,6.4392]
[1723351160877,11.11,155.35,155.29,16.0979]
[1723351161440,11.11,155.35,155.29,15.5979]
[1723351162052,7.77811297,155.37,155.3,21.8316]
[1723351162253,11.11,155.36,155.32,6.4379]
[1723351163345,45.0,155.35,155.32,6.4379]
[1723351164779,45.0,155.35,155.31,6.4387]
[1723351165264,45.0,155.35,155.3,21.8316]
[1723351165265,11.23549,155.34,155.3,28.2707]
[1723351165447,45.0,155.33,155.3,28.2707]
[1723351167352,45.0,155.33,155.31,6.4385]
[1723351169579,45.0,155.33,155.32,6.4383]
[1723351169783,15.21823714,155.39,155.33,6.4379]
[1723351169958,11.11,155.37,155.33,6.4379]
[1723351171866,45.25098,155.36,155.33,6.4379]
[1723351172486,11.11,155.39,155.34,16.0934]
[1723351173056,388.37811297,155.41,155.34,16.0934]
[1723351173057,7.77811297,155.41,155.34,16.0934]
[1723351173259,11.11,155.4,155.34,16.0934]
[1723351173462,11.11,155.4,155.35,6.4367]
[1723351173953,11.11,155.4,155.34,16.0934]
[1723351174159,11.11,155.4,155.36,6.4366]
[1723351174573,45.12549,155.39,155.36,6.4366]
[1723351175677,45.12549,155.39,155.34,22.5304]
[1723351175883,51.56099,155.39,155.34,22.5304]
[1723351177064,0.12549,155.38,155.34,22.5304]
[1723351177389,56.23549,155.39,155.35,6.4368]
[1723351179364,0.12549,155.38,155.34,16.0934]
[1723351180563,11.11,155.37,155.32,6.4379]
[1723351180864,45.12549,155.36,155.31,22.5354]
[1723351181068,0.12549,155.35,155.31,22.5354]
[1723351181280,11.48647,155.35,155.31,22.5354]
[1723351181475,11.11,155.35,155.32,6.438]
[1723351181780,45.12549,155.36,155.32,6.438]
[1723351184077,45.12549,155.36,155.31,16.0967]
[1723351184078,11.11,155.38,155.34,6.4372]
[1723351184876,6.4354,155.4,155.34,6.4372]
[1723351185192,11.11,155.38,155.34,6.4372]
[1723351185379,11.11,155.38,155.32,6.438]
[1723351185380,17.5459,155.38,155.32,6.438]
[1723351185567,45.12549,155.37,155.32,6.438]
[1723351186166,45.0,155.37,155.33,6.4377]
[1723351187577,11.11,155.37,155.33,6.4377]